[Event "*** Biggest EVER Titled Tuesday"]
[Site "Chess.com"]
[Date "2018.04.17"]
[Round "8"]
[White "lukas_111111"]
[Black "Bigfish1995"]
[Result "0-1"]
[WhiteElo "2498"]
[BlackElo "2749"]
[TimeControl "180+2"]
[EndTime "14:54:26 PDT"]
[Termination "Bigfish1995 won by resignation"]

1. e4 {[%clk 0:03:01.9]} 1... e5 {[%clk 0:02:55.2]} 2. Nf3 {[%clk 0:03:02.9]}
2... Nc6 {[%clk 0:02:56.1]} 3. Bb5 {[%clk 0:03:02.8]} 3... Nf6 {[%clk 0:02:57]}
4. O-O {[%clk 0:03:03.4]} 4... Nxe4 {[%clk 0:02:56.3]} 5. Re1 {[%clk 0:03:02.3]}
5... Nd6 {[%clk 0:02:57.1]} 6. Nxe5 {[%clk 0:03:03.2]} 6... Be7 {[%clk
0:02:58.3]} 7. Bf1 {[%clk 0:03:02.6]} 7... O-O {[%clk 0:02:58.9]} 8. Nf3 {[%clk
0:03:02.9]} 8... Ne8 {[%clk 0:02:57.7]} 9. d4 {[%clk 0:03:03.3]} 9... d5 {[%clk
0:02:58.7]} 10. c3 {[%clk 0:02:56.9]} 10... Nf6 {[%clk 0:02:40.8]} 11. Nbd2
{[%clk 0:02:53.4]} 11... a5 {[%clk 0:02:39.4]} 12. Bb5 {[%clk 0:02:46.4]} 12...
Na7 {[%clk 0:02:29.8]} 13. Bd3 {[%clk 0:02:46.4]} 13... Bd6 {[%clk 0:02:00.9]}
14. Nf1 {[%clk 0:02:44]} 14... Nc6 {[%clk 0:01:44]} 15. Ng3 {[%clk 0:02:37.5]}
15... h6 {[%clk 0:01:44.4]} 16. h3 {[%clk 0:02:23.9]} 16... Re8 {[%clk
0:01:39.1]} 17. Rxe8+ {[%clk 0:02:16.1]} 17... Qxe8 {[%clk 0:01:38.6]} 18. Qc2
{[%clk 0:02:16.3]} 18... Be6 {[%clk 0:01:27]} 19. Bd2 {[%clk 0:02:14.4]} 19...
Ne7 {[%clk 0:01:03.7]} 20. Re1 {[%clk 0:02:03.1]} 20... Qc8 {[%clk 0:01:01.2]}
21. Qc1 {[%clk 0:01:40.2]} 21... Nf5 {[%clk 0:00:49.4]} 22. Ne2 {[%clk
0:01:21.5]} 22... Ne4 {[%clk 0:00:40]} 23. Nf4 {[%clk 0:01:20.4]} 23... Nxd2
{[%clk 0:00:32.4]} 24. Qxd2 {[%clk 0:01:21]} 24... Bxf4 {[%clk 0:00:31.6]} 25.
Qxf4 {[%clk 0:01:21.5]} 25... Nd6 {[%clk 0:00:32.9]} 26. Ne5 {[%clk 0:01:08]}
26... Qd8 {[%clk 0:00:33.1]} 27. Ng4 {[%clk 0:00:58.2]} 27... Ne8 {[%clk
0:00:13.5]} 28. Re3 {[%clk 0:00:48.7]} 28... Qd6 {[%clk 0:00:09.7]} 29. Nxh6+
{[%clk 0:00:43.3]} 29... Kf8 {[%clk 0:00:10.9]} 30. Qxd6+ {[%clk 0:00:32.6]}
30... Nxd6 {[%clk 0:00:11.9]} 31. Ng4 {[%clk 0:00:33.5]} 31... a4 {[%clk
0:00:13]} 32. Ne5 {[%clk 0:00:21.4]} 32... a3 {[%clk 0:00:13.3]} 33. b4 {[%clk
0:00:20.5]} 33... f6 {[%clk 0:00:09.8]} 34. Ng6+ {[%clk 0:00:20.9]} 34... Kf7
{[%clk 0:00:10.9]} 35. Nf4 {[%clk 0:00:21.6]} 35... Bf5 {[%clk 0:00:12.1]} 36.
Nxd5 {[%clk 0:00:18.2]} 36... Bxd3 {[%clk 0:00:13]} 37. Rxd3 {[%clk 0:00:18.5]}
37... c6 {[%clk 0:00:14.5]} 38. Nb6 {[%clk 0:00:11.3]} 38... Ra6 {[%clk
0:00:13.7]} 39. Nd7 {[%clk 0:00:11.8]} 39... Nc4 {[%clk 0:00:10.2]} 40. Nc5
{[%clk 0:00:11.8]} 40... Ra7 {[%clk 0:00:10.8]} 41. Rd1 {[%clk 0:00:09.7]} 41...
b6 {[%clk 0:00:11.7]} 42. Nd3 {[%clk 0:00:10]} 42... Re7 {[%clk 0:00:12.2]} 43.
Re1 {[%clk 0:00:10.9]} 43... Rxe1+ {[%clk 0:00:07]} 44. Nxe1 {[%clk 0:00:12.8]}
44... Ke6 {[%clk 0:00:08.3]} 45. Nc2 {[%clk 0:00:12.2]} 45... Kd5 {[%clk
0:00:06.8]} 46. f3 {[%clk 0:00:13.4]} 46... Nb2 {[%clk 0:00:04.6]} 47. Nxa3
{[%clk 0:00:13.7]} 47... Nd1 {[%clk 0:00:05.7]} 48. c4+ {[%clk 0:00:09]} 48...
Kxd4 {[%clk 0:00:06.2]} 49. g4 {[%clk 0:00:05.4]} 49... Ne3 {[%clk 0:00:05.7]}
50. c5 {[%clk 0:00:04]} 50... b5 {[%clk 0:00:04.3]} 51. Kf2 {[%clk 0:00:03.7]}
51... Nd5 {[%clk 0:00:05]} 52. Kg3 {[%clk 0:00:04.3]} 52... Nxb4 {[%clk
0:00:05.6]} 53. h4 {[%clk 0:00:05.2]} 53... Nxa2 {[%clk 0:00:06.1]} 54. g5
{[%clk 0:00:05.6]} 54... fxg5 {[%clk 0:00:06.4]} 55. hxg5 {[%clk 0:00:06.5]}
55... Nc3 {[%clk 0:00:07.1]} 56. f4 {[%clk 0:00:06.5]} 56... Kd3 {[%clk
0:00:08.4]} 57. f5 {[%clk 0:00:07.5]} 57... b4 {[%clk 0:00:09.8]} 58. f6 {[%clk
0:00:06.2]} 58... gxf6 {[%clk 0:00:11.1]} 59. g6 {[%clk 0:00:07.3]} 59... bxa3
{[%clk 0:00:08.7]} 60. g7 {[%clk 0:00:08.5]} 60... a2 {[%clk 0:00:09.9]} 61.
g8=Q {[%clk 0:00:09.7]} 61... a1=Q {[%clk 0:00:10.9]} 62. Qh7+ {[%clk
0:00:09.2]} 62... Kc4 {[%clk 0:00:11.4]} 63. Qg8+ {[%clk 0:00:06.7]} 63... Nd5
{[%clk 0:00:12.1]} 64. Qg4+ {[%clk 0:00:05.4]} 64... Qd4 {[%clk 0:00:12.3]} 65.
Qe2+ {[%clk 0:00:06.3]} 65... Kxc5 {[%clk 0:00:12.9]} 0-1

[Event "*** Biggest EVER Titled Tuesday"]
[Site "Chess.com"]
[Date "2018.04.17"]
[Round "8"]
[White "Zaven_ChessMood"]
[Black "ZapataCharlesS"]
[Result "1/2-1/2"]
[WhiteElo "2864"]
[BlackElo "2718"]
[TimeControl "180+2"]
[EndTime "14:54:27 PDT"]
[Termination "Game drawn by repetition"]

1. e4 {[%clk 0:03:01.9]} 1... e5 {[%clk 0:02:58.7]} 2. Nf3 {[%clk 0:03:02.1]}
2... Nc6 {[%clk 0:03:00.3]} 3. Bc4 {[%clk 0:03:03.1]} 3... Nf6 {[%clk
0:02:59.9]} 4. d3 {[%clk 0:03:04.4]} 4... Bc5 {[%clk 0:02:57.4]} 5. c3 {[%clk
0:03:04.4]} 5... a6 {[%clk 0:02:54]} 6. Nbd2 {[%clk 0:03:05.1]} 6... O-O {[%clk
0:02:48.2]} 7. O-O {[%clk 0:03:05]} 7... Ba7 {[%clk 0:02:49.6]} 8. Bb3 {[%clk
0:03:06]} 8... d6 {[%clk 0:02:46.3]} 9. h3 {[%clk 0:03:07]} 9... Be6 {[%clk
0:02:47.4]} 10. Re1 {[%clk 0:03:05.7]} 10... Nh5 {[%clk 0:02:40.9]} 11. Nf1
{[%clk 0:02:59]} 11... Qf6 {[%clk 0:02:24.9]} 12. Ne3 {[%clk 0:02:59.8]} 12...
Nf4 {[%clk 0:02:22]} 13. Nd5 {[%clk 0:02:56.9]} 13... Bxd5 {[%clk 0:02:19.4]}
14. exd5 {[%clk 0:02:54.3]} 14... Ne7 {[%clk 0:02:12]} 15. d4 {[%clk 0:02:52.7]}
15... Neg6 {[%clk 0:02:10.7]} 16. Be3 {[%clk 0:02:30.9]} 16... h6 {[%clk
0:01:54.9]} 17. g3 {[%clk 0:02:24.5]} 17... Nxh3+ {[%clk 0:01:39.3]} 18. Kg2
{[%clk 0:02:25]} 18... e4 {[%clk 0:01:41.2]} 19. Nd2 {[%clk 0:02:22.8]} 19...
Ng5 {[%clk 0:01:42.1]} 20. Qg4 {[%clk 0:02:15.6]} 20... Rfe8 {[%clk 0:01:33.2]}
21. Bc2 {[%clk 0:02:14.8]} 21... Nf3 {[%clk 0:01:21.9]} 22. Nxf3 {[%clk
0:02:14.8]} 22... Qxf3+ {[%clk 0:01:15.3]} 23. Qxf3 {[%clk 0:02:15.4]} 23...
exf3+ {[%clk 0:01:17.2]} 24. Kxf3 {[%clk 0:02:17.1]} 24... b5 {[%clk 0:01:11.8]}
25. a4 {[%clk 0:02:13.7]} 25... b4 {[%clk 0:01:10.1]} 26. a5 {[%clk 0:02:10.8]}
26... Ne7 {[%clk 0:01:00.7]} 27. Bb3 {[%clk 0:02:07.3]} 27... Rab8 {[%clk
0:00:47.4]} 28. Bc4 {[%clk 0:02:08]} 28... Kf8 {[%clk 0:00:42.1]} 29. g4 {[%clk
0:02:01.4]} 29... f6 {[%clk 0:00:39.8]} 30. Bd2 {[%clk 0:01:56.6]} 30... f5
{[%clk 0:00:38.2]} 31. g5 {[%clk 0:01:54.2]} 31... bxc3 {[%clk 0:00:36.3]} 32.
bxc3 {[%clk 0:01:53.5]} 32... Rb2 {[%clk 0:00:36.5]} 33. Ra2 {[%clk 0:01:48.1]}
33... Rxa2 {[%clk 0:00:30.2]} 34. Bxa2 {[%clk 0:01:49]} 34... h5 {[%clk
0:00:28.2]} 35. Rb1 {[%clk 0:01:47.5]} 35... Rb8 {[%clk 0:00:29]} 36. Rxb8+
{[%clk 0:01:44.2]} 36... Bxb8 {[%clk 0:00:30.9]} 37. Bc4 {[%clk 0:01:45.3]}
37... c6 {[%clk 0:00:27]} 38. Bxa6 {[%clk 0:01:41.6]} 38... Bc7 {[%clk 0:00:28]}
39. c4 {[%clk 0:01:39.7]} 39... cxd5 {[%clk 0:00:29]} 40. cxd5 {[%clk
0:01:32.7]} 40... Bb8 {[%clk 0:00:30.2]} 41. Bc4 {[%clk 0:01:14.9]} 41... Ke8
{[%clk 0:00:29.9]} 42. Ke3 {[%clk 0:01:08.2]} 42... Kd7 {[%clk 0:00:28.9]} 43.
f3 {[%clk 0:01:00.3]} 43... Ba7 {[%clk 0:00:29.3]} 44. Be1 {[%clk 0:00:54.7]}
44... g6 {[%clk 0:00:23.4]} 45. Kd3 {[%clk 0:00:52.8]} 45... Kc7 {[%clk
0:00:22.2]} 46. Bg3 {[%clk 0:00:50.8]} 46... Bb8 {[%clk 0:00:20.7]} 47. Bb3
{[%clk 0:00:48.4]} 47... Kb7 {[%clk 0:00:20.6]} 48. Kc4 {[%clk 0:00:47.4]} 48...
Bc7 {[%clk 0:00:22.2]} 49. Kb5 {[%clk 0:00:46.3]} 49... Bb8 {[%clk 0:00:23.8]}
50. Be1 {[%clk 0:00:41.2]} 50... Bc7 {[%clk 0:00:22.1]} 51. Bc4 {[%clk
0:00:32.8]} 51... Kb8 {[%clk 0:00:20.5]} 52. Ka6 {[%clk 0:00:28.5]} 52... Bd8
{[%clk 0:00:21.1]} 53. Bg3 {[%clk 0:00:24.4]} 53... Bc7 {[%clk 0:00:23]} 54. Bb3
{[%clk 0:00:22.6]} 54... Nc8 {[%clk 0:00:19.1]} 55. Ba4 {[%clk 0:00:21.3]} 55...
Ne7 {[%clk 0:00:21]} 56. Be8 {[%clk 0:00:19.7]} 56... Kc8 {[%clk 0:00:22.5]} 57.
Kb5 {[%clk 0:00:18.1]} 57... Kb8 {[%clk 0:00:23.4]} 58. Bf7 {[%clk 0:00:17.8]}
58... Kc8 {[%clk 0:00:22.8]} 59. a6 {[%clk 0:00:17.4]} 59... Kb8 {[%clk
0:00:22.1]} 60. Be1 {[%clk 0:00:17.9]} 60... Ka7 {[%clk 0:00:23.4]} 61. Bg3
{[%clk 0:00:16]} 61... Kb8 {[%clk 0:00:22]} 62. Be8 {[%clk 0:00:16.7]} 62... Ka7
{[%clk 0:00:18.6]} 63. Bf7 {[%clk 0:00:16.6]} 63... Kb8 {[%clk 0:00:19.6]} 64.
Be1 {[%clk 0:00:15.8]} 64... Ka7 {[%clk 0:00:20.7]} 65. Bf2 {[%clk 0:00:16.1]}
65... Kb8 {[%clk 0:00:18.7]} 66. f4 {[%clk 0:00:17.4]} 66... Ka7 {[%clk
0:00:18.5]} 67. Be1 {[%clk 0:00:18.1]} 67... Kb8 {[%clk 0:00:19.8]} 68. Bf2
{[%clk 0:00:15.9]} 68... Ka7 {[%clk 0:00:20.4]} 69. Be1 {[%clk 0:00:15.5]} 69...
Kb8 {[%clk 0:00:20.9]} 70. Bf2 {[%clk 0:00:16]} 1/2-1/2

[Event "*** Biggest EVER Titled Tuesday"]
[Site "Chess.com"]
[Date "2018.04.17"]
[Round "8"]
[White "LawrenceTrent"]
[Black "Iball95"]
[Result "1-0"]
[WhiteElo "2530"]
[BlackElo "2541"]
[TimeControl "180+2"]
[EndTime "14:54:55 PDT"]
[Termination "LawrenceTrent won by checkmate"]

1. e4 {[%clk 0:03:00.1]} 1... c5 {[%clk 0:03:00.5]} 2. Nf3 {[%clk 0:03:00.2]}
2... Nc6 {[%clk 0:03:01.9]} 3. Bb5 {[%clk 0:02:59.5]} 3... d6 {[%clk 0:03:02.7]}
4. O-O {[%clk 0:02:58.3]} 4... Bd7 {[%clk 0:03:03.2]} 5. Re1 {[%clk 0:02:59.5]}
5... a6 {[%clk 0:03:02.9]} 6. Bxc6 {[%clk 0:02:59.3]} 6... Bxc6 {[%clk
0:03:03.8]} 7. d4 {[%clk 0:03:00.7]} 7... cxd4 {[%clk 0:02:57.8]} 8. Nxd4 {[%clk
0:03:00.5]} 8... Nf6 {[%clk 0:02:54.8]} 9. Nc3 {[%clk 0:03:00.5]} 9... e6 {[%clk
0:02:52.4]} 10. Bg5 {[%clk 0:02:48.5]} 10... Be7 {[%clk 0:02:52.2]} 11. Nxc6
{[%clk 0:02:49.7]} 11... bxc6 {[%clk 0:02:52.2]} 12. e5 {[%clk 0:02:49.9]} 12...
dxe5 {[%clk 0:02:52.5]} 13. Qxd8+ {[%clk 0:02:50]} 13... Rxd8 {[%clk 0:02:52.4]}
14. Rxe5 {[%clk 0:02:51]} 14... Nd5 {[%clk 0:02:53.6]} 15. Bxe7 {[%clk
0:02:48.3]} 15... Kxe7 {[%clk 0:02:55.5]} 16. Na4 {[%clk 0:02:45.6]} 16... f6
{[%clk 0:02:52.7]} 17. Re4 {[%clk 0:02:41.5]} 17... e5 {[%clk 0:02:48.6]} 18.
Rae1 {[%clk 0:02:31.9]} 18... Kf7 {[%clk 0:02:46.9]} 19. Rc4 {[%clk 0:02:31.6]}
19... Ne7 {[%clk 0:02:43.9]} 20. Nc5 {[%clk 0:02:24.9]} 20... a5 {[%clk
0:02:44.6]} 21. Nb3 {[%clk 0:02:19.3]} 21... Rd5 {[%clk 0:02:43.8]} 22. g3
{[%clk 0:02:14.3]} 22... h5 {[%clk 0:02:43.7]} 23. h4 {[%clk 0:02:10.7]} 23...
Rb8 {[%clk 0:02:39]} 24. Kg2 {[%clk 0:02:08.9]} 24... Rb4 {[%clk 0:02:39.4]} 25.
Ree4 {[%clk 0:02:08.8]} 25... Rdb5 {[%clk 0:02:33.1]} 26. c3 {[%clk 0:02:00.5]}
26... Rxc4 {[%clk 0:02:26]} 27. Rxc4 {[%clk 0:02:02.4]} 27... Rd5 {[%clk
0:02:03.8]} 28. Rc5 {[%clk 0:01:58.7]} 28... a4 {[%clk 0:02:03.3]} 29. Rxd5
{[%clk 0:01:57]} 29... Nxd5 {[%clk 0:02:02.7]} 30. Nc5 {[%clk 0:01:55.2]} 30...
a3 {[%clk 0:02:03.2]} 31. bxa3 {[%clk 0:01:56.7]} 31... Nxc3 {[%clk 0:02:04.4]}
32. a4 {[%clk 0:01:58.2]} 32... Ke7 {[%clk 0:01:59.7]} 33. a5 {[%clk 0:01:59.4]}
33... Kd6 {[%clk 0:01:58.2]} 34. a6 {[%clk 0:01:58.4]} 34... Nb5 {[%clk
0:01:58.5]} 35. a4 {[%clk 0:01:57.2]} 35... Na7 {[%clk 0:01:28.1]} 36. Nb7+
{[%clk 0:01:33.7]} 36... Kd5 {[%clk 0:01:29.2]} 37. Kf3 {[%clk 0:01:35]} 37...
c5 {[%clk 0:01:19.9]} 38. Ke3 {[%clk 0:01:35.7]} 38... g5 {[%clk 0:01:15.1]} 39.
Nd8 {[%clk 0:01:28]} 39... gxh4 {[%clk 0:01:05.3]} 40. gxh4 {[%clk 0:01:28]}
40... c4 {[%clk 0:00:52.1]} 41. Nf7 {[%clk 0:01:10.3]} 41... Nc6 {[%clk
0:00:43.6]} 42. Nd8 {[%clk 0:01:04.2]} 42... Na7 {[%clk 0:00:37]} 43. Nf7 {[%clk
0:01:00.5]} 43... Kc5 {[%clk 0:00:33.3]} 44. Kd2 {[%clk 0:00:46.4]} 44... Kb4
{[%clk 0:00:27]} 45. Nd6 {[%clk 0:00:47.3]} 45... Kxa4 {[%clk 0:00:16]} 46. Kc3
{[%clk 0:00:44.3]} 46... Ka5 {[%clk 0:00:15.3]} 47. Kxc4 {[%clk 0:00:43.9]}
47... Kxa6 {[%clk 0:00:16.9]} 48. Kd5 {[%clk 0:00:45.4]} 48... Kb6 {[%clk
0:00:17.5]} 49. Ne4 {[%clk 0:00:45]} 49... Nb5 {[%clk 0:00:13.5]} 50. Nxf6
{[%clk 0:00:44.6]} 50... e4 {[%clk 0:00:13.3]} 51. Kxe4 {[%clk 0:00:44.1]} 51...
Kc6 {[%clk 0:00:15.2]} 52. Nxh5 {[%clk 0:00:45.1]} 52... Kd6 {[%clk 0:00:16.5]}
53. f4 {[%clk 0:00:42.9]} 53... Ke6 {[%clk 0:00:17.5]} 54. f5+ {[%clk
0:00:42.7]} 54... Kf7 {[%clk 0:00:18.9]} 55. Nf4 {[%clk 0:00:42.7]} 55... Nd6+
{[%clk 0:00:18.3]} 56. Ke5 {[%clk 0:00:43.9]} 56... Nc4+ {[%clk 0:00:19.7]} 57.
Kd5 {[%clk 0:00:44.8]} 57... Ne3+ {[%clk 0:00:20.7]} 58. Ke4 {[%clk 0:00:46.2]}
58... Ng4 {[%clk 0:00:20.9]} 59. Nd5 {[%clk 0:00:44.8]} 59... Nf2+ {[%clk
0:00:20.3]} 60. Ke3 {[%clk 0:00:43.9]} 60... Ng4+ {[%clk 0:00:21.3]} 61. Kf4
{[%clk 0:00:44.9]} 61... Nf2 {[%clk 0:00:22.7]} 62. h5 {[%clk 0:00:42.6]} 62...
Nd3+ {[%clk 0:00:22.7]} 63. Kg5 {[%clk 0:00:42.7]} 63... Nc5 {[%clk 0:00:23.6]}
64. Nc3 {[%clk 0:00:39.2]} 64... Nd7 {[%clk 0:00:21.2]} 65. Ne4 {[%clk
0:00:39.5]} 65... Kg7 {[%clk 0:00:20.6]} 66. f6+ {[%clk 0:00:39.6]} 66... Kh7
{[%clk 0:00:21.5]} 67. Kf5 {[%clk 0:00:34.5]} 67... Kh6 {[%clk 0:00:20.8]} 68.
Ng3 {[%clk 0:00:33.2]} 68... Nf8 {[%clk 0:00:20]} 69. Ke5 {[%clk 0:00:31.7]}
69... Kg5 {[%clk 0:00:19.8]} 70. f7 {[%clk 0:00:29.7]} 70... Kh6 {[%clk
0:00:19.6]} 71. Kf6 {[%clk 0:00:30.7]} 71... Nh7+ {[%clk 0:00:20]} 72. Ke7
{[%clk 0:00:31.9]} 72... Kg7 {[%clk 0:00:21.1]} 73. Nf5+ {[%clk 0:00:31.5]}
73... Kh8 {[%clk 0:00:22.4]} 74. f8=Q+ {[%clk 0:00:31]} 74... Nxf8 {[%clk
0:00:24.3]} 75. Kxf8 {[%clk 0:00:32]} 75... Kh7 {[%clk 0:00:26.2]} 76. Kf7
{[%clk 0:00:32.9]} 76... Kh8 {[%clk 0:00:27.7]} 77. Kg6 {[%clk 0:00:34.1]} 77...
Kg8 {[%clk 0:00:28.9]} 78. h6 {[%clk 0:00:33.8]} 78... Kh8 {[%clk 0:00:30.8]}
79. Ne3 {[%clk 0:00:33.4]} 79... Kg8 {[%clk 0:00:32.7]} 80. Ng4 {[%clk
0:00:33.8]} 80... Kh8 {[%clk 0:00:34.6]} 81. Ne5 {[%clk 0:00:34.9]} 81... Kg8
{[%clk 0:00:36.5]} 82. h7+ {[%clk 0:00:36.4]} 82... Kh8 {[%clk 0:00:38.4]} 83.
Nf7# {[%clk 0:00:37.8]} 1-0

[Event "*** Biggest EVER Titled Tuesday"]
[Site "Chess.com"]
[Date "2018.04.17"]
[Round "8"]
[White "Fins0905"]
[Black "Marcus_Harvey"]
[Result "1-0"]
[WhiteElo "2531"]
[BlackElo "2609"]
[TimeControl "180+2"]
[EndTime "14:54:58 PDT"]
[Termination "Fins0905 won by resignation"]

1. d4 {[%clk 0:03:01.9]} 1... e6 {[%clk 0:03:01.1]} 2. Nf3 {[%clk 0:02:58.9]}
2... Nf6 {[%clk 0:03:02]} 3. c4 {[%clk 0:02:58.3]} 3... Bb4+ {[%clk 0:03:02.1]}
4. Bd2 {[%clk 0:02:59]} 4... Qe7 {[%clk 0:03:02.2]} 5. g3 {[%clk 0:02:57.7]}
5... O-O {[%clk 0:03:03.1]} 6. Bg2 {[%clk 0:02:57.4]} 6... Bxd2+ {[%clk
0:03:04.6]} 7. Qxd2 {[%clk 0:02:56.7]} 7... d6 {[%clk 0:03:06.5]} 8. Nc3 {[%clk
0:02:56.2]} 8... e5 {[%clk 0:03:07.7]} 9. O-O {[%clk 0:02:53.7]} 9... Re8 {[%clk
0:03:08.1]} 10. e3 {[%clk 0:02:43.4]} 10... Bg4 {[%clk 0:02:57.2]} 11. Rac1
{[%clk 0:02:26.2]} 11... c6 {[%clk 0:02:52.9]} 12. b4 {[%clk 0:02:17.7]} 12...
Nbd7 {[%clk 0:02:42.8]} 13. h3 {[%clk 0:02:07.8]} 13... Bxf3 {[%clk 0:02:42.1]}
14. Bxf3 {[%clk 0:02:08.8]} 14... e4 {[%clk 0:02:35.9]} 15. Bg2 {[%clk
0:02:06.3]} 15... Nf8 {[%clk 0:02:31.7]} 16. b5 {[%clk 0:01:38.5]} 16... h5
{[%clk 0:02:30.8]} 17. bxc6 {[%clk 0:01:34.2]} 17... bxc6 {[%clk 0:02:31]} 18.
Qc2 {[%clk 0:01:30.2]} 18... h4 {[%clk 0:02:29.7]} 19. g4 {[%clk 0:01:28.7]}
19... N8h7 {[%clk 0:02:30.5]} 20. Rb1 {[%clk 0:01:22.5]} 20... Ng5 {[%clk
0:02:28.7]} 21. Rb2 {[%clk 0:01:16.9]} 21... Qe6 {[%clk 0:02:27.7]} 22. Ne2
{[%clk 0:01:11.2]} 22... Reb8 {[%clk 0:02:16.1]} 23. Rfb1 {[%clk 0:01:06.3]}
23... Qc8 {[%clk 0:02:13.4]} 24. Nf4 {[%clk 0:00:50.3]} 24... g6 {[%clk
0:01:57.5]} 25. Kh1 {[%clk 0:00:46.3]} 25... Kg7 {[%clk 0:01:55.6]} 26. Qc3
{[%clk 0:00:41]} 26... Rxb2 {[%clk 0:01:49.6]} 27. Qxb2 {[%clk 0:00:41.3]} 27...
Qa6 {[%clk 0:01:50.7]} 28. d5 {[%clk 0:00:34.3]} 28... c5 {[%clk 0:01:45.9]} 29.
Bf1 {[%clk 0:00:16.6]} 29... Nf3 {[%clk 0:01:38.1]} 30. Be2 {[%clk 0:00:15.6]}
30... Ne5 {[%clk 0:01:37.3]} 31. Qb7 {[%clk 0:00:05.8]} 31... Qxa2 {[%clk
0:01:30.9]} 32. Rb2 {[%clk 0:00:04.9]} 32... Qa3 {[%clk 0:01:25]} 33. Kg2 {[%clk
0:00:04.8]} 33... g5 {[%clk 0:01:22.5]} 34. Ne6+ {[%clk 0:00:05.1]} 34... Kg6
{[%clk 0:01:23.3]} 35. Qxa8 {[%clk 0:00:05.4]} 35... Qxb2 {[%clk 0:01:20.6]} 36.
Nf8+ {[%clk 0:00:06.4]} 36... Kg7 {[%clk 0:01:20.9]} 37. Ne6+ {[%clk 0:00:07]}
37... fxe6 {[%clk 0:01:03.6]} 38. Qxa7+ {[%clk 0:00:08]} 38... Ned7 {[%clk
0:00:41.5]} 39. dxe6 {[%clk 0:00:08.5]} 39... Qb8 {[%clk 0:00:40.7]} 40. exd7
{[%clk 0:00:06.4]} 40... Qxa7 {[%clk 0:00:39.4]} 41. d8=Q {[%clk 0:00:07.4]}
41... Qd7 {[%clk 0:00:40.4]} 42. Qb8 {[%clk 0:00:07.8]} 42... Qe7 {[%clk
0:00:39]} 43. Qc8 {[%clk 0:00:08.1]} 43... Nd7 {[%clk 0:00:39.5]} 44. Qc7 {[%clk
0:00:07.4]} 44... Kf6 {[%clk 0:00:40.2]} 45. Qb7 {[%clk 0:00:08.1]} 45... Nf8
{[%clk 0:00:34.1]} 46. Qd5 {[%clk 0:00:07.8]} 46... Qe6 {[%clk 0:00:35.2]} 47.
Qc6 {[%clk 0:00:08]} 47... Ng6 {[%clk 0:00:34.4]} 48. Qa8 {[%clk 0:00:08.1]}
48... Ke7 {[%clk 0:00:29]} 49. Qb7+ {[%clk 0:00:07.5]} 49... Kf8 {[%clk
0:00:29.5]} 50. Qa8+ {[%clk 0:00:08.2]} 50... Kg7 {[%clk 0:00:30.6]} 51. Qb7+
{[%clk 0:00:09.6]} 51... Qe7 {[%clk 0:00:31.9]} 52. Qd5 {[%clk 0:00:10.3]} 52...
Nf8 {[%clk 0:00:32.3]} 53. Bd1 {[%clk 0:00:09.4]} 53... Nd7 {[%clk 0:00:30.6]}
54. Bc2 {[%clk 0:00:09.8]} 54... Nf6 {[%clk 0:00:31.8]} 55. Qf5 {[%clk 0:00:11]}
55... Qe5 {[%clk 0:00:25.3]} 56. Qxe5 {[%clk 0:00:10.8]} 56... dxe5 {[%clk
0:00:26]} 57. Kf1 {[%clk 0:00:11.7]} 57... Kf7 {[%clk 0:00:22.9]} 58. Ke2 {[%clk
0:00:13.1]} 58... Ke7 {[%clk 0:00:24.3]} 59. Kd2 {[%clk 0:00:14.6]} 59... Kd6
{[%clk 0:00:25.6]} 60. Kc3 {[%clk 0:00:16]} 60... Kc6 {[%clk 0:00:27]} 61. Kb3
{[%clk 0:00:17]} 61... Kb6 {[%clk 0:00:27.9]} 62. Ka4 {[%clk 0:00:18.5]} 62...
Ka6 {[%clk 0:00:29]} 63. Bb1 {[%clk 0:00:18.9]} 63... Kb6 {[%clk 0:00:30.3]} 64.
Bc2 {[%clk 0:00:20.2]} 64... Ka6 {[%clk 0:00:22.4]} 65. Bb1 {[%clk 0:00:20.9]}
65... Nd7 {[%clk 0:00:22.9]} 66. Bxe4 {[%clk 0:00:20.6]} 66... Nb6+ {[%clk
0:00:24.5]} 67. Kb3 {[%clk 0:00:21.5]} 67... Ka5 {[%clk 0:00:25.9]} 68. Bc6
{[%clk 0:00:22.5]} 68... Nc8 {[%clk 0:00:26.3]} 69. Kc3 {[%clk 0:00:23.7]} 69...
Nd6 {[%clk 0:00:27.4]} 70. Bd5 {[%clk 0:00:23.2]} 70... Ka4 {[%clk 0:00:27.7]}
71. f4 {[%clk 0:00:19.2]} 71... exf4 {[%clk 0:00:27.8]} 72. exf4 {[%clk
0:00:20.9]} 72... gxf4 {[%clk 0:00:29.6]} 73. g5 {[%clk 0:00:22.4]} 73... Nf5
{[%clk 0:00:28.7]} 74. Kd3 {[%clk 0:00:20.9]} 74... Nd4 {[%clk 0:00:11.2]} 75.
g6 {[%clk 0:00:19.6]} 75... f3 {[%clk 0:00:13.1]} 76. g7 {[%clk 0:00:19.3]}
76... f2 {[%clk 0:00:13.6]} 77. Bg2 {[%clk 0:00:20.3]} 1-0